Workbook

Sheet Sheet 1
B2: Table 1
B3: Sample | C3: Index | D3: Purification | E3: UV | F3: Total reads (raw) | G3: map_ERCC | H3: Total reads wo ERCC | I3: map_rRNA | J3: map_tRNA | K3: map_snRNA | L3: map_protein-coding | M3: map_rest | N3: map_rRNA norm | O3: map_tRNA norm | P3: map_snRNA norm | Q3: map_protein-coding norm | R3: map_rest norm
B4: HU_BB_016_S1_L001_R1_001.fastq | C4: 16 | D4: input | E4: 0 | F4: 30244320 | G4: 25848 | H4: 30218472 | I4: 22933460 | J4: 211 | K4: 7715 | L4: 1898239 | M4: =H4-SUM(I4:L4) -> 5378847 | N4: =I4/H4 -> 0.7589218939 | O4: =J4/H4 -> 6.982484091e-06 | P4: =K4/H4 -> 0.0002553074159 | Q4: =L4/H4 -> 0.06281717355 | R4: =M4/H4 -> 0.1779986427
B5: HU_BB_017_S2_L001_R1_001.fastq | C5: 17 | D5: input | E5: 0 | F5: 32808166 | G5: 26932 | H5: 32781234 | I5: 25393044 | J5: 313 | K5: 9566 | L5: 1802568 | M5: =H5-SUM(I5:L5) -> 5575743 | N5: =I5/H5 -> 0.7746213581 | O5: =J5/H5 -> 9.548145747e-06 | P5: =K5/H5 -> 0.0002918132978 | Q5: =L5/H5 -> 0.05498780186 | R5: =M5/H5 -> 0.1700894786
B6: HU_BB_018_S3_L001_R1_001.fastq | C6: 18 | D6: input | E6: 0 | F6: 36244731 | G6: 27600 | H6: 36217131 | I6: 29155816 | J6: 286 | K6: 7406 | L6: 1745000 | M6: =H6-SUM(I6:L6) -> 5308623 | N6: =I6/H6 -> 0.8050283166 | O6: =J6/H6 -> 7.89681546e-06 | P6: =K6/H6 -> 0.0002044888647 | Q6: =L6/H6 -> 0.0481816188 | R6: =M6/H6 -> 0.1465776789
B7: HU_BB_019_S4_L001_R1_001.fastq | C7: 19 | D7: input | E7: 0.015 | F7: 53148024 | G7: 46539 | H7: 53101485 | I7: 41971604 | J7: 761 | K7: 17517 | L7: 1745000 | M7: =H7-SUM(I7:L7) -> 9366603 | N7: =I7/H7 -> 0.7904035829 | O7: =J7/H7 -> 1.433104931e-05 | P7: =K7/H7 -> 0.0003298777803 | Q7: =L7/H7 -> 0.03286160453 | R7: =M7/H7 -> 0.1763906038
B8: HU_BB_020_S5_L001_R1_001.fastq | C8: 20 | D8: input | E8: 0.015 | F8: 12998655 | G8: 7133 | H8: 12991522 | I8: 6547788 | J8: 31 | K8: 2203 | L8: 493142 | M8: =H8-SUM(I8:L8) -> 5948358 | N8: =I8/H8 -> 0.5040046886 | O8: =J8/H8 -> 2.386171536e-06 | P8: =K8/H8 -> 0.0001695721256 | Q8: =L8/H8 -> 0.03795875495 | R8: =M8/H8 -> 0.4578645982
B9: HU_BB_022_S6_L001_R1_001.fastq | C9: 22 | D9: input | E9: 0.15 | F9: 44824983 | G9: 56339 | H9: 44768644 | I9: 38578484 | J9: 276 | K9: 6845 | L9: 1684165 | M9: =H9-SUM(I9:L9) -> 4498874 | N9: =I9/H9 -> 0.8617300091 | O9: =J9/H9 -> 6.165029256e-06 | P9: =K9/H9 -> 0.000152897193 | Q9: =L9/H9 -> 0.0376192989 | R9: =M9/H9 -> 0.1004916298
B10: HU_BB_023_S7_L001_R1_001.fastq | C10: 23 | D10: input | E10: 0.15 | F10: 47428655 | G10: 38619 | H10: 47390036 | I10: 40660925 | J10: 300 | K10: 6831 | L10: 1769069 | M10: =H10-SUM(I10:L10) -> 4952911 | N10: =I10/H10 -> 0.8580057842 | O10: =J10/H10 -> 6.330444653e-06 | P10: =K10/H10 -> 0.0001441442247 | Q10: =L10/H10 -> 0.03732997797 | R10: =M10/H10 -> 0.1045137632
B11: HU_BB_024_S8_L001_R1_001.fastq | C11: 24 | D11: input | E11: 0.15 | F11: 35156667 | G11: 42331 | H11: 35114336 | I11: 30050571 | J11: 348 | K11: 7783 | L11: 1294832 | M11: =H11-SUM(I11:L11) -> 3760802 | N11: =I11/H11 -> 0.8557920902 | O11: =J11/H11 -> 9.910482146e-06 | P11: =K11/H11 -> 0.0002216473636 | Q11: =L11/H11 -> 0.03687473971 | R11: =M11/H11 -> 0.1071016123
B12: HU_BB_025_S9_L001_R1_001.fastq | C12: 25 | D12: input | E12: 1.5 | F12: 37121534 | G12: 43337 | H12: 37078197 | I12: 32489656 | J12: 248 | K12: 8799 | L12: 966844 | M12: =H12-SUM(I12:L12) -> 3612650 | N12: =I12/H12 -> 0.8762469221 | O12: =J12/H12 -> 6.688566869e-06 | P12: =K12/H12 -> 0.0002373092737 | Q12: =L12/H12 -> 0.02607580946 | R12: =M12/H12 -> 0.09743327056
B13: HU_BB_026_S10_L001_R1_001.fastq | C13: 26 | D13: input | E13: 1.5 | F13: 36417346 | G13: 75187 | H13: 36342159 | I13: 32812160 | J13: 186 | K13: 4611 | L13: 653440 | M13: =H13-SUM(I13:L13) -> 2871762 | N13: =I13/H13 -> 0.9028676585 | O13: =J13/H13 -> 5.118022845e-06 | P13: =K13/H13 -> 0.0001268774373 | Q13: =L13/H13 -> 0.01798021961 | R13: =M13/H13 -> 0.07902012646
B14: HU_BB_027_S11_L001_R1_001.fastq | C14: 27 | D14: input | E14: 1.5 | F14: 44696355 | G14: 57634 | H14: 44638721 | I14: 38592540 | J14: 230 | K14: 10127 | L14: 1406292 | M14: =H14-SUM(I14:L14) -> 4629532 | N14: =I14/H14 -> 0.8645529965 | O14: =J14/H14 -> 5.152477375e-06 | P14: =K14/H14 -> 0.000226865819 | Q14: =L14/H14 -> 0.03150385962 | R14: =M14/H14 -> 0.1037111256
B15: HU_BB_028_S12_L002_R1_001.fastq | C15: 28 | D15: PTex | E15: 0 | F15: 27747545 | G15: 18471 | H15: 27729074 | I15: 25493334 | J15: 417 | K15: 2223 | L15: 829883 | M15: =H15-SUM(I15:L15) -> 1403217 | N15: =I15/H15 -> 0.919371992 | O15: =J15/H15 -> 1.503836731e-05 | P15: =K15/H15 -> 8.016856243e-05 | Q15: =L15/H15 -> 0.0299282623 | R15: =M15/H15 -> 0.05060453876
B16: HU_BB_029_S13_L002_R1_001.fastq | C16: 29 | D16: PTex | E16: 0 | F16: 28709058 | G16: 40715 | H16: 28668343 | I16: 24673170 | J16: 410 | K16: 2052 | L16: 1915169 | M16: =H16-SUM(I16:L16) -> 2077542 | N16: =I16/H16 -> 0.8606416492 | O16: =J16/H16 -> 1.430148928e-05 | P16: =K16/H16 -> 7.157720975e-05 | Q16: =L16/H16 -> 0.06680431443 | R16: =M16/H16 -> 0.07246815765
B17: HU_BB_030_S14_L002_R1_001.fastq | C17: 30 | D17: PTex | E17: 0 | F17: 29275699 | G17: 17576 | H17: 29258123 | I17: 26024483 | J17: 255 | K17: 1817 | L17: 1251332 | M17: =H17-SUM(I17:L17) -> 1980236 | N17: =I17/H17 -> 0.8894788979 | O17: =J17/H17 -> 8.715528334e-06 | P17: =K17/H17 -> 6.21024117e-05 | Q17: =L17/H17 -> 0.04276870393 | R17: =M17/H17 -> 0.06768158026
B18: HU_BB_031_S15_L002_R1_001.fastq | C18: 31 | D18: PTex | E18: 0.015 | F18: 39478176 | G18: 22005 | H18: 39456171 | I18: 35751140 | J18: 566 | K18: 3557 | L18: 1337066 | M18: =H18-SUM(I18:L18) -> 2363842 | N18: =I18/H18 -> 0.9060975532 | O18: =J18/H18 -> 1.43450311e-05 | P18: =K18/H18 -> 9.015066363e-05 | Q18: =L18/H18 -> 0.03388737341 | R18: =M18/H18 -> 0.05991057774
B19: HU_BB_032_S16_L002_R1_001.fastq | C19: 32 | D19: PTex | E19: 0.015 | F19: 32408202 | G19: 140638 | H19: 32267564 | I19: 29228714 | J19: 62 | K19: 569 | L19: 851659 | M19: =H19-SUM(I19:L19) -> 2186560 | N19: =I19/H19 -> 0.9058233835 | O19: =J19/H19 -> 1.921434168e-06 | P19: =K19/H19 -> 1.763380713e-05 | Q19: =L19/H19 -> 0.02639365649 | R19: =M19/H19 -> 0.06776340476
B20: HU_BB_033_S17_L002_R1_001.fastq | C20: 33 | D20: PTex | E20: 0.015 | F20: 46059023 | G20: 24037 | H20: 46034986 | I20: 40212568 | J20: 272 | K20: 3223 | L20: 1831509 | M20: =H20-SUM(I20:L20) -> 3987414 | N20: =I20/H20 -> 0.8735218905 | O20: =J20/H20 -> 5.908549641e-06 | P20: =K20/H20 -> 7.001196872e-05 | Q20: =L20/H20 -> 0.03978515384 | R20: =M20/H20 -> 0.08661703514
B21: HU_BB_034_S18_L002_R1_001.fastq | C21: 34 | D21: PTex | E21: 0.15 | F21: 13747661 | G21: 9558 | H21: 13738103 | I21: 12843985 | J21: 76 | K21: 524 | L21: 305508 | M21: =H21-SUM(I21:L21) -> 588010 | N21: =I21/H21 -> 0.9349169241 | O21: =J21/H21 -> 5.532059266e-06 | P21: =K21/H21 -> 3.814209283e-05 | Q21: =L21/H21 -> 0.02223800477 | R21: =M21/H21 -> 0.04280139696
B22: HU_BB_035_S19_L002_R1_001.fastq | C22: 35 | D22: PTex | E22: 0.15 | F22: 34743864 | G22: 35029 | H22: 34708835 | I22: 31745908 | J22: 135 | K22: 1441 | L22: 1111743 | M22: =H22-SUM(I22:L22) -> 1849608 | N22: =I22/H22 -> 0.9146347897 | O22: =J22/H22 -> 3.889499604e-06 | P22: =K22/H22 -> 4.151680689e-05 | Q22: =L22/H22 -> 0.03203054784 | R22: =M22/H22 -> 0.05328925618
B23: HU_BB_036_S20_L002_R1_001.fastq | C23: 36 | D23: PTex | E23: 0.15 | F23: 34270901 | G23: 23382 | H23: 34247519 | I23: 30847901 | J23: 195 | K23: 1720 | L23: 1098598 | M23: =H23-SUM(I23:L23) -> 2299105 | N23: =I23/H23 -> 0.9007338897 | O23: =J23/H23 -> 5.693843107e-06 | P23: =K23/H23 -> 5.022261613e-05 | Q23: =L23/H23 -> 0.03207817769 | R23: =M23/H23 -> 0.06713201619
B24: HU_BB_037_S21_L002_R1_001.fastq | C24: 37 | D24: PTex | E24: 1.5 | F24: 31724028 | G24: 33354 | H24: 31690674 | I24: 29893273 | J24: 164 | K24: 1188 | L24: 544724 | M24: =H24-SUM(I24:L24) -> 1251325 | N24: =I24/H24 -> 0.9432829671 | O24: =J24/H24 -> 5.175024047e-06 | P24: =K24/H24 -> 3.748736931e-05 | Q24: =L24/H24 -> 0.01718877926 | R24: =M24/H24 -> 0.03948559125
B25: HU_BB_038_S22_L002_R1_001.fastq | C25: 38 | D25: PTex | E25: 1.5 | F25: 32738157 | G25: 40158 | H25: 32697999 | I25: 30856936 | J25: 132 | K25: 1144 | L25: 509059 | M25: =H25-SUM(I25:L25) -> 1330728 | N25: =I25/H25 -> 0.9436949337 | O25: =J25/H25 -> 4.036944279e-06 | P25: =K25/H25 -> 3.498685042e-05 | Q25: =L25/H25 -> 0.0155685062 | R25: =M25/H25 -> 0.04069753626
B26: HU_BB_039_S23_L002_R1_001.fastq | C26: 39 | D26: PTex | E26: 1.5 | F26: 30392963 | G26: 40244 | H26: 30352719 | I26: 28535128 | J26: 111 | K26: 1346 | L26: 663823 | M26: =H26-SUM(I26:L26) -> 1152311 | N26: =I26/H26 -> 0.9401176876 | O26: =J26/H26 -> 3.657003513e-06 | P26: =K26/H26 -> 4.434528584e-05 | Q26: =L26/H26 -> 0.02187029768 | R26: =M26/H26 -> 0.03796401238
D28: Input noCL | E28: 0 | F28: =AVERAGE(F4:F6) -> 33099072.33 | G28: =AVERAGE(G4:G6) -> 26793.33333 | H28: =AVERAGE(H4:H6) -> 33072279 | I28: =AVERAGE(I4:I6) -> 25827440 | J28: =AVERAGE(J4:J6) -> 270 | K28: =AVERAGE(K4:K6) -> 8229 | L28: =AVERAGE(L4:L6) -> 1815269 | M28: =AVERAGE(M4:M6) -> 5421071 | N28: =I28/H28 -> 0.7809392271 | O28: =J28/H28 -> 8.163936933e-06 | P28: =K28/H28 -> 0.0002488186556 | Q28: =L28/H28 -> 0.05488793197 | R28: =M28/H28 -> 0.1639158584
D29: Input 0.015 | E29: 0.015 | F29: =AVERAGE(F7:F8) -> 33073339.5 | G29: =AVERAGE(G7:G8) -> 26836 | H29: =AVERAGE(H7:H8) -> 33046503.5 | I29: =AVERAGE(I7:I8) -> 24259696 | J29: =AVERAGE(J7:J8) -> 396 | K29: =AVERAGE(K7:K8) -> 9860 | L29: =AVERAGE(L7:L8) -> 1119071 | M29: =AVERAGE(M7:M8) -> 7657480.5 | N29: =I29/H29 -> 0.7341078005 | O29: =J29/H29 -> 1.198311343e-05 | P29: =K29/H29 -> 0.0002983674203 | Q29: =L29/H29 -> 0.03386352205 | R29: =M29/H29 -> 0.2317183269
D30: Input 0.15 | E30: 0.15 | F30: =AVERAGE(F9:F11) -> 42470101.67 | G30: =AVERAGE(G9:G11) -> 45763 | H30: =AVERAGE(H9:H11) -> 42424338.67 | I30: =AVERAGE(I9:I11) -> 36429993.33 | J30: =AVERAGE(J9:J11) -> 308 | K30: =AVERAGE(K9:K11) -> 7153 | L30: =AVERAGE(L9:L11) -> 1582688.667 | M30: =AVERAGE(M9:M11) -> 4404195.667 | N30: =I30/H30 -> 0.8587050377 | O30: =J30/H30 -> 7.25998353e-06 | P30: =K30/H30 -> 0.0001686060461 | Q30: =L30/H30 -> 0.03730614823 | R30: =M30/H30 -> 0.1038129481
D31: Input 1.5 | E31: 1.5 | F31: =AVERAGE(F12:F14) -> 39411745 | G31: =AVERAGE(G12:G14) -> 58719.33333 | H31: =AVERAGE(H12:H14) -> 39353025.67 | I31: =AVERAGE(I12:I14) -> 34631452 | J31: =AVERAGE(J12:J14) -> 221.3333333 | K31: =AVERAGE(K12:K14) -> 7845.666667 | L31: =AVERAGE(L12:L14) -> 1008858.667 | M31: =AVERAGE(M12:M14) -> 3704648 | N31: =I31/H31 -> 0.8800200598 | O31: =J31/H31 -> 5.624302823e-06 | P31: =K31/H31 -> 0.0001993662885 | Q31: =L31/H31 -> 0.02563611437 | R31: =M31/H31 -> 0.09413883525
D32: PTex noCL | E32: 0 | F32: =AVERAGE(F15:F17) -> 28577434 | G32: =AVERAGE(G15:G17) -> 25587.33333 | H32: =AVERAGE(H15:H17) -> 28551846.67 | I32: =AVERAGE(I15:I17) -> 25396995.67 | J32: =AVERAGE(J15:J17) -> 360.6666667 | K32: =AVERAGE(K15:K17) -> 2030.666667 | L32: =AVERAGE(L15:L17) -> 1332128 | M32: =AVERAGE(M15:M17) -> 1820331.667 | N32: =I32/H32 -> 0.8895044851 | O32: =J32/H32 -> 1.263199088e-05 | P32: =K32/H32 -> 7.112207803e-05 | Q32: =L32/H32 -> 0.04665645678 | R32: =M32/H32 -> 0.06375530409
D33: PTex 0.015 | E33: 0.015 | F33: =AVERAGE(F18:F20) -> 39315133.67 | G33: =AVERAGE(G18:G20) -> 62226.66667 | H33: =AVERAGE(H18:H20) -> 39252907 | I33: =AVERAGE(I18:I20) -> 35064140.67 | J33: =AVERAGE(J18:J20) -> 300 | K33: =AVERAGE(K18:K20) -> 2449.666667 | L33: =AVERAGE(L18:L20) -> 1340078 | M33: =AVERAGE(M18:M20) -> 2845938.667 | N33: =I33/H33 -> 0.8932877421 | O33: =J33/H33 -> 7.642746052e-06 | P33: =K33/H33 -> 6.240726748e-05 | Q33: =L33/H33 -> 0.03413958615 | R33: =M33/H33 -> 0.0725026217
D34: PTex 0.15 | E34: 0.15 | F34: =AVERAGE(F21:F23) -> 27587475.33 | G34: =AVERAGE(G21:G23) -> 22656.33333 | H34: =AVERAGE(H21:H23) -> 27564819 | I34: =AVERAGE(I21:I23) -> 25145931.33 | J34: =AVERAGE(J21:J23) -> 135.3333333 | K34: =AVERAGE(K21:K23) -> 1228.333333 | L34: =AVERAGE(L21:L23) -> 838616.3333 | M34: =AVERAGE(M21:M23) -> 1578907.667 | N34: =I34/H34 -> 0.9122472864 | O34: =J34/H34 -> 4.909639832e-06 | P34: =K34/H34 -> 4.456163247e-05 | Q34: =L34/H34 -> 0.03042342971 | R34: =M34/H34 -> 0.0572798126
D35: PTex 1.5 | E35: 1.5 | F35: =AVERAGE(F24:F26) -> 31618382.67 | G35: =AVERAGE(G24:G26) -> 37918.66667 | H35: =AVERAGE(H24:H26) -> 31580464 | I35: =AVERAGE(I24:I26) -> 29761779 | J35: =AVERAGE(J24:J26) -> 135.6666667 | K35: =AVERAGE(K24:K26) -> 1226 | L35: =AVERAGE(L24:L26) -> 572535.3333 | M35: =AVERAGE(M24:M26) -> 1244788 | N35: =I35/H35 -> 0.9424110741 | O35: =J35/H35 -> 4.295904793e-06 | P35: =K35/H35 -> 3.882146887e-05 | Q35: =L35/H35 -> 0.01812941486 | R35: =M35/H35 -> 0.03941639363
